[Event "December 19 Early 2023"]
[Site "https://www.chess.com"]
[Date "2023.12.19"]
[Round "7"]
[White "Burmakin, Evgeniy"]
[Black "Smolka, Marcin"]
[Result "0-1"]
[Board "110"]
[TimeControl "180+1"]
[WhiteFideId "4163729"]
[BlackFideId "1139681"]
[WhiteElo "2106"]
[BlackElo "2117"]
[WhiteTeam "RUS"]
[BlackTeam "POL"]
[WhiteClock "0:00:07"]
[BlackClock "0:00:50"]

1. e4 {[%clk 0:03:00]}  c5 {[%clk 0:02:59]} 2. Nc3 {[%clk 0:03:00]}  e6 {[%clk 0:02:58]} 3. Nf3 {[%clk 0:02:59]}  Nc6 {[%clk 0:02:56]} 4. d4 {[%clk 0:02:59]}  cxd4 {[%clk 0:02:56]} 5. Nxd4 {[%clk 0:03:00]}  Qc7 {[%clk 0:02:57]} 6. Be3 {[%clk 0:02:54]}  a6 {[%clk 0:02:57]} 7. Be2 {[%clk 0:02:45]}  b5 {[%clk 0:02:57]} 8. a3 {[%clk 0:02:44]}  Bb7 {[%clk 0:02:57]} 9. O-O {[%clk 0:02:42]}  Nf6 {[%clk 0:02:57]} 10. f3 {[%clk 0:02:42]}  Bc5 {[%clk 0:02:52]} 11. Kh1 {[%clk 0:02:27]}  Qb6 {[%clk 0:02:42]} 12. Qd2 {[%clk 0:02:27]}  Nxd4 {[%clk 0:02:40]} 13. e5 {[%clk 0:02:09]}  Nxe2 {[%clk 0:02:36]} 14. Bxc5 {[%clk 0:02:03]}  Qxc5 {[%clk 0:02:33]} 15. exf6 {[%clk 0:02:01]}  Nxc3 {[%clk 0:02:28]} 16. fxg7 {[%clk 0:02:01]}  Rg8 {[%clk 0:02:28]} 17. bxc3 {[%clk 0:01:54]}  Rxg7 {[%clk 0:02:21]} 18. Rad1 {[%clk 0:01:52]}  Bc6 {[%clk 0:02:20]} 19. Rfe1 {[%clk 0:01:44]}  Qg5 {[%clk 0:02:20]} 20. Qf2 {[%clk 0:01:38]}  Kf8 {[%clk 0:02:17]} 21. Re2 {[%clk 0:01:33]}  Kg8 {[%clk 0:02:17]} 22. h3 {[%clk 0:01:25]}  Kh8 {[%clk 0:02:16]} 23. Red2 {[%clk 0:01:21]}  Rag8 {[%clk 0:02:15]} 24. Rg1 {[%clk 0:01:19]}  Qh5 {[%clk 0:02:13]} 25. Rd4 {[%clk 0:01:15]}  f5 {[%clk 0:01:58]} 26. Kh2 {[%clk 0:01:10]}  a5 {[%clk 0:01:50]} 27. g4 {[%clk 0:01:05]}  Qf7 {[%clk 0:01:45]} 28. Rf4 {[%clk 0:00:54]}  Qe7 {[%clk 0:01:42]} 29. Rd1 {[%clk 0:00:52]}  fxg4 {[%clk 0:01:39]} 30. fxg4 {[%clk 0:00:53]}  e5 {[%clk 0:01:39]} 31. Rf5 {[%clk 0:00:44]}  Re8 {[%clk 0:01:31]} 32. Rf1 {[%clk 0:00:42]}  h6 {[%clk 0:01:30]} 33. Qe3 {[%clk 0:00:39]}  Rg6 {[%clk 0:01:26]} 34. Rf7 {[%clk 0:00:38]}  Qg5 {[%clk 0:01:26]} 35. Qf2 {[%clk 0:00:33]}  Rg7 {[%clk 0:01:21]} 36. Rf8+ {[%clk 0:00:28]}  Rxf8 {[%clk 0:01:21]} 37. Qxf8+ {[%clk 0:00:29]}  Kh7 {[%clk 0:01:20]} 38. Rf2 {[%clk 0:00:27]}  e4 {[%clk 0:01:19]} 39. Rf7 {[%clk 0:00:23]}  Qe5+ {[%clk 0:01:13]} 40. Kg1 {[%clk 0:00:22]}  Rxf7 {[%clk 0:00:54]} 41. Qxf7+ {[%clk 0:00:23]}  Qg7 {[%clk 0:00:54]} 42. Qf5+ {[%clk 0:00:23]}  Kg8 {[%clk 0:00:54]} 43. h4 {[%clk 0:00:20]}  e3 {[%clk 0:00:48]} 44. Kf1 {[%clk 0:00:17]}  Qf7 {[%clk 0:00:48]} 45. Qxf7+ {[%clk 0:00:14]}  Kxf7 {[%clk 0:00:49]} 46. Ke2 {[%clk 0:00:14]}  Be4 {[%clk 0:00:48]} 47. Kxe3 {[%clk 0:00:14]}  Bxc2 {[%clk 0:00:48]} 48. Kd4 {[%clk 0:00:12]}  a4 {[%clk 0:00:46]} 49. Kc5 {[%clk 0:00:11]}  Bd3 {[%clk 0:00:46]} 50. Kd6 {[%clk 0:00:11]}  Be2 {[%clk 0:00:45]} 51. Kxd7 {[%clk 0:00:09]}  Bxg4+ {[%clk 0:00:45]} 52. Kc6 {[%clk 0:00:10]}  Be2 {[%clk 0:00:46]} 53. Kd5 {[%clk 0:00:09]}  Bc4+ {[%clk 0:00:47]} 54. Ke4 {[%clk 0:00:09]}  Kg6 {[%clk 0:00:48]} 55. Kf4 {[%clk 0:00:10]}  Kh5 {[%clk 0:00:49]} 56. Kg3 {[%clk 0:00:10]}  Bd3 {[%clk 0:00:48]} 57. Kh3 {[%clk 0:00:10]}  Bf1+ {[%clk 0:00:48]} 58. Kg3 {[%clk 0:00:11]}  Bc4 {[%clk 0:00:49]} 59. Kh3 {[%clk 0:00:11]}  Bd5 {[%clk 0:00:49]} 60. Kg3 {[%clk 0:00:11]}  Be6 {[%clk 0:00:49]} 61. Kf4 {[%clk 0:00:10]}  Kxh4 {[%clk 0:00:50]} 62. Kf3 {[%clk 0:00:07]}  Bc4 {[%clk 0:00:50]} 0-1

[Event "December 19 Early 2023"]
[Site "https://www.chess.com"]
[Date "2023.12.19"]
[Round "7"]
[White "aksuliini1"]
[Black "Szyszylo, Rafal"]
[Result "1-0"]
[Board "115"]
[TimeControl "180+1"]
[BlackFideId "1109626"]
[WhiteElo "2539"]
[BlackElo "1951"]
[BlackTeam "POL"]
[WhiteClock "0:00:44"]
[BlackClock "0:00:00"]

1. e4 {[%clk 0:03:00]}  g6 {[%clk 0:02:59]} 2. d4 {[%clk 0:03:00]}  d6 {[%clk 0:02:59]} 3. Nf3 {[%clk 0:03:00]}  Nf6 {[%clk 0:02:59]} 4. Nc3 {[%clk 0:02:59]}  Bg7 {[%clk 0:02:59]} 5. Be3 {[%clk 0:03:00]}  c6 {[%clk 0:02:51]} 6. Qd2 {[%clk 0:02:58]}  h5 {[%clk 0:02:51]} 7. O-O-O {[%clk 0:02:54]}  b5 {[%clk 0:02:50]} 8. e5 {[%clk 0:02:39]}  b4 {[%clk 0:02:37]} 9. exf6 {[%clk 0:02:21]}  bxc3 {[%clk 0:02:37]} 10. Qxc3 {[%clk 0:02:22]}  Bxf6 {[%clk 0:02:36]} 11. Bc4 {[%clk 0:02:16]}  Bg4 {[%clk 0:02:00]} 12. Qb3 {[%clk 0:02:07]}  O-O {[%clk 0:01:55]} 13. Be2 {[%clk 0:02:06]}  Bxf3 {[%clk 0:01:54]} 14. Bxf3 {[%clk 0:02:06]}  d5 {[%clk 0:01:31]} 15. h4 {[%clk 0:02:02]}  Nd7 {[%clk 0:01:29]} 16. g4 {[%clk 0:02:01]}  hxg4 {[%clk 0:01:24]} 17. Bxg4 {[%clk 0:02:02]}  Rb8 {[%clk 0:00:55]} 18. Qa3 {[%clk 0:02:00]}  Nb6 {[%clk 0:00:52]} 19. b3 {[%clk 0:01:55]}  Qc7 {[%clk 0:00:16]} 20. h5 {[%clk 0:01:53]}  g5 {[%clk 0:00:16]} 21. Bf5 {[%clk 0:01:50]}  Kh8 {[%clk 0:00:16]} 22. h6 {[%clk 0:01:49]}  e6 {[%clk 0:00:16]} 23. Bd3 {[%clk 0:01:48]}  Be7 {[%clk 0:00:13]} 24. Qa5 {[%clk 0:01:44]}  Qd6 {[%clk 0:00:06]} 25. Rhg1 {[%clk 0:01:32]}  Rg8 {[%clk 0:00:04]} 26. h7 {[%clk 0:01:14]}  Rg7 {[%clk 0:00:04]} 27. Qxa7 {[%clk 0:01:04]}  f5 {[%clk 0:00:04]} 28. f4 {[%clk 0:00:54]}  g4 {[%clk 0:00:04]} 29. Qa5 {[%clk 0:00:46]}  Bd8 {[%clk 0:00:04]} 30. Qc5 {[%clk 0:00:45]}  Qc7 {[%clk 0:00:02]} 31. a4 {[%clk 0:00:44]}  Nd7 {[%clk 0:00:00]} 32. Qc3 {[%clk 0:00:44]} 1-0

[Event "December 19 Early 2023"]
[Site "https://www.chess.com"]
[Date "2023.12.19"]
[Round "7"]
[White "Kraus, Tomas"]
[Black "Korchynskyi, Mykola"]
[Result "0-1"]
[Board "116"]
[TimeControl "180+1"]
[WhiteFideId "331708"]
[BlackFideId "34138005"]
[WhiteElo "2371"]
[BlackElo "2007"]
[WhiteTeam "CZE"]
[BlackTeam "UKR"]
[WhiteClock "0:01:12"]
[BlackClock "0:02:38"]

1. e4 {[%clk 0:03:00]}  e6 {[%clk 0:03:00]} 2. d4 {[%clk 0:02:57]}  d5 {[%clk 0:03:01]} 3. exd5 {[%clk 0:02:58]}  exd5 {[%clk 0:03:01]} 4. Nf3 {[%clk 0:02:54]}  Nf6 {[%clk 0:03:02]} 5. Bg5 {[%clk 0:02:53]}  Bd6 {[%clk 0:03:03]} 6. Bd3 {[%clk 0:02:49]}  O-O {[%clk 0:03:03]} 7. O-O {[%clk 0:02:49]}  Bg4 {[%clk 0:03:02]} 8. Nbd2 {[%clk 0:02:46]}  c6 {[%clk 0:03:01]} 9. c3 {[%clk 0:02:46]}  Nbd7 {[%clk 0:03:02]} 10. Qc2 {[%clk 0:02:46]}  Qc7 {[%clk 0:03:02]} 11. h3 {[%clk 0:02:41]}  Bh5 {[%clk 0:03:02]} 12. Rfe1 {[%clk 0:02:34]}  Rfe8 {[%clk 0:03:02]} 13. a4 {[%clk 0:02:22]}  Bg6 {[%clk 0:02:59]} 14. b3 {[%clk 0:02:14]}  Bf4 {[%clk 0:02:56]} 15. Bxf4 {[%clk 0:02:03]}  Qxf4 {[%clk 0:02:57]} 16. Bxg6 {[%clk 0:01:53]}  hxg6 {[%clk 0:02:56]} 17. Qd3 {[%clk 0:01:52]}  Ne4 {[%clk 0:02:43]} 18. c4 {[%clk 0:01:49]}  Ndf6 {[%clk 0:02:42]} 19. cxd5 {[%clk 0:01:37]}  cxd5 {[%clk 0:02:41]} 20. Ne5 {[%clk 0:01:36]}  Qxd2 {[%clk 0:02:40]} 21. Qb5 {[%clk 0:01:12]}  Qxf2+ {[%clk 0:02:38]} 0-1

[Event "December 19 Early 2023"]
[Site "https://www.chess.com"]
[Date "2023.12.19"]
[Round "7"]
[White "Mesquita, Eduardo Barbosa"]
[Black "Rangel, Daniel"]
[Result "1-0"]
[Board "118"]
[TimeControl "180+1"]
[WhiteFideId "22757163"]
[BlackFideId "2124475"]
[WhiteElo "1953"]
[BlackElo "2267"]
[WhiteTeam "BRA"]
[BlackTeam "BRA"]
[WhiteClock "0:00:10"]
[BlackClock "0:00:06"]

1. e4 {[%clk 0:03:00]}  c5 {[%clk 0:02:59]} 2. Nf3 {[%clk 0:03:01]}  g6 {[%clk 0:03:00]} 3. d4 {[%clk 0:03:01]}  cxd4 {[%clk 0:03:00]} 4. c3 {[%clk 0:03:01]}  Bg7 {[%clk 0:03:00]} 5. cxd4 {[%clk 0:03:02]}  d5 {[%clk 0:03:00]} 6. e5 {[%clk 0:03:02]}  Bg4 {[%clk 0:03:00]} 7. h3 {[%clk 0:03:02]}  Bxf3 {[%clk 0:02:59]} 8. Qxf3 {[%clk 0:03:03]}  e6 {[%clk 0:03:00]} 9. Bb5+ {[%clk 0:03:02]}  Nc6 {[%clk 0:02:59]} 10. O-O {[%clk 0:02:56]}  Ne7 {[%clk 0:02:59]} 11. Be3 {[%clk 0:02:57]}  O-O {[%clk 0:02:59]} 12. Nd2 {[%clk 0:02:57]}  a6 {[%clk 0:02:58]} 13. Be2 {[%clk 0:02:55]}  Nf5 {[%clk 0:02:50]} 14. Nb3 {[%clk 0:02:55]}  f6 {[%clk 0:02:44]} 15. exf6 {[%clk 0:02:55]}  Bxf6 {[%clk 0:02:40]} 16. Rad1 {[%clk 0:02:49]}  Nfxd4 {[%clk 0:02:34]} 17. Nxd4 {[%clk 0:02:49]}  Nxd4 {[%clk 0:02:15]} 18. Bxd4 {[%clk 0:02:49]}  Bxd4 {[%clk 0:02:16]} 19. Qg4 {[%clk 0:02:49]}  e5 {[%clk 0:02:07]} 20. Kh1 {[%clk 0:02:39]}  Qf6 {[%clk 0:01:56]} 21. f4 {[%clk 0:02:38]}  e4 {[%clk 0:01:56]} 22. f5 {[%clk 0:02:38]}  g5 {[%clk 0:01:50]} 23. h4 {[%clk 0:02:33]}  h6 {[%clk 0:01:48]} 24. Rd2 {[%clk 0:02:10]}  Rad8 {[%clk 0:01:11]} 25. Rfd1 {[%clk 0:02:10]}  Bxb2 {[%clk 0:01:04]} 26. Rxd5 {[%clk 0:01:55]}  Rxd5 {[%clk 0:00:37]} 27. Rxd5 {[%clk 0:01:55]}  Rd8 {[%clk 0:00:36]} 28. Qxe4 {[%clk 0:01:50]}  Rxd5 {[%clk 0:00:32]} 29. Qxd5+ {[%clk 0:01:50]}  Qf7 {[%clk 0:00:30]} 30. Qd8+ {[%clk 0:01:49]}  Kg7 {[%clk 0:00:29]} 31. hxg5 {[%clk 0:01:47]}  Qxf5 {[%clk 0:00:24]} 32. Qe7+ {[%clk 0:01:33]}  Kg6 {[%clk 0:00:22]} 33. Bf3 {[%clk 0:00:57]}  Be5 {[%clk 0:00:20]} 34. Qe8+ {[%clk 0:00:27]}  Kxg5 {[%clk 0:00:20]} 35. Qh5+ {[%clk 0:00:21]}  Kf4 {[%clk 0:00:14]} 36. Qxh6+ {[%clk 0:00:20]}  Kg3 {[%clk 0:00:15]} 37. Qe3 {[%clk 0:00:12]}  Qh7+ {[%clk 0:00:08]} 38. Kg1 {[%clk 0:00:12]}  Qh2+ {[%clk 0:00:07]} 39. Kf1 {[%clk 0:00:12]}  Qh1+ {[%clk 0:00:07]} 40. Ke2 {[%clk 0:00:12]}  Bf4 {[%clk 0:00:06]} 41. Qf2+ {[%clk 0:00:12]}  Kh2 {[%clk 0:00:06]} 42. Qh4+ {[%clk 0:00:11]}  Kg1 {[%clk 0:00:06]} 43. Qxf4 {[%clk 0:00:09]}  Qh8 {[%clk 0:00:04]} 44. Qe3+ {[%clk 0:00:09]}  Kh1 {[%clk 0:00:04]} 45. g4+ {[%clk 0:00:09]}  Kh2 {[%clk 0:00:05]} 46. Qf2+ {[%clk 0:00:09]}  Kh3 {[%clk 0:00:05]} 47. Qg2+ {[%clk 0:00:08]}  Kh4 {[%clk 0:00:06]} 48. Qh2+ {[%clk 0:00:09]}  Kg5 {[%clk 0:00:06]} 49. Qxh8 {[%clk 0:00:10]} 1-0

[Event "December 19 Early 2023"]
[Site "https://www.chess.com"]
[Date "2023.12.19"]
[Round "7"]
[White "Borawski, Jakub"]
[Black "Horak, Martin"]
[Result "0-1"]
[Board "119"]
[TimeControl "180+1"]
[WhiteFideId "1143000"]
[BlackFideId "367095"]
[WhiteElo "2052"]
[BlackElo "2091"]
[WhiteTeam "POL"]
[BlackTeam "CZE"]
[WhiteClock "0:00:06"]
[BlackClock "0:00:09"]

1. f4 {[%clk 0:03:00]}  d5 {[%clk 0:02:59]} 2. e3 {[%clk 0:03:00]}  Nf6 {[%clk 0:03:00]} 3. b3 {[%clk 0:03:01]}  c5 {[%clk 0:03:00]} 4. Bb5+ {[%clk 0:03:00]}  Bd7 {[%clk 0:03:00]} 5. Qe2 {[%clk 0:02:56]}  a6 {[%clk 0:02:59]} 6. Bxd7+ {[%clk 0:02:56]}  Qxd7 {[%clk 0:03:00]} 7. Nf3 {[%clk 0:02:55]}  Nc6 {[%clk 0:03:01]} 8. Bb2 {[%clk 0:02:56]}  e6 {[%clk 0:03:01]} 9. O-O {[%clk 0:02:55]}  Be7 {[%clk 0:03:01]} 10. d3 {[%clk 0:02:55]}  O-O {[%clk 0:03:01]} 11. Nbd2 {[%clk 0:02:55]}  b5 {[%clk 0:03:01]} 12. Ne5 {[%clk 0:02:47]}  Qc7 {[%clk 0:03:01]} 13. Ndf3 {[%clk 0:02:46]}  Nd7 {[%clk 0:03:00]} 14. Nxc6 {[%clk 0:02:39]}  Qxc6 {[%clk 0:03:01]} 15. c4 {[%clk 0:02:35]}  f6 {[%clk 0:02:40]} 16. Rac1 {[%clk 0:02:31]}  dxc4 {[%clk 0:02:31]} 17. dxc4 {[%clk 0:02:31]}  Rfd8 {[%clk 0:02:24]} 18. e4 {[%clk 0:02:30]}  Nb6 {[%clk 0:02:16]} 19. cxb5 {[%clk 0:02:04]}  axb5 {[%clk 0:02:16]} 20. Nd4 {[%clk 0:01:37]}  Qd7 {[%clk 0:02:05]} 21. Qxb5 {[%clk 0:01:28]}  Qxb5 {[%clk 0:02:01]} 22. Nxb5 {[%clk 0:01:27]}  Rxa2 {[%clk 0:02:02]} 23. Rf2 {[%clk 0:01:21]}  c4 {[%clk 0:01:18]} 24. Bd4 {[%clk 0:01:21]}  Rxf2 {[%clk 0:00:51]} 25. Bxf2 {[%clk 0:01:20]}  cxb3 {[%clk 0:00:34]} 26. Bxb6 {[%clk 0:00:54]}  Rb8 {[%clk 0:00:26]} 27. Rb1 {[%clk 0:00:40]}  Rxb6 {[%clk 0:00:23]} 28. Rxb3 {[%clk 0:00:40]}  Bc5+ {[%clk 0:00:19]} 29. Kf1 {[%clk 0:00:40]}  Kf8 {[%clk 0:00:18]} 30. Ke2 {[%clk 0:00:40]}  h5 {[%clk 0:00:16]} 31. Kd3 {[%clk 0:00:39]}  Bg1 {[%clk 0:00:11]} 32. h3 {[%clk 0:00:32]}  g6 {[%clk 0:00:11]} 33. Kc4 {[%clk 0:00:18]}  Rc6+ {[%clk 0:00:11]} 34. Kd3 {[%clk 0:00:18]}  Rb6 {[%clk 0:00:12]} 35. Kc4 {[%clk 0:00:18]}  Rb8 {[%clk 0:00:12]} 36. Rb1 {[%clk 0:00:12]}  Be3 {[%clk 0:00:11]} 37. f5 {[%clk 0:00:10]}  gxf5 {[%clk 0:00:09]} 38. exf5 {[%clk 0:00:11]}  e5 {[%clk 0:00:10]} 39. Rc1 {[%clk 0:00:09]}  Rc8+ {[%clk 0:00:09]} 40. Kd3 {[%clk 0:00:06]}  Bxc1 {[%clk 0:00:09]} 0-1

[Event "December 19 Early 2023"]
[Site "https://www.chess.com"]
[Date "2023.12.19"]
[Round "7"]
[White "Kostiukov, Alexandr"]
[Black "Senft, Sean"]
[Result "1-0"]
[Board "121"]
[TimeControl "180+1"]
[WhiteFideId "14108100"]
[BlackFideId "2044960"]
[WhiteElo "2112"]
[BlackElo "2005"]
[WhiteTeam "UKR"]
[BlackTeam "USA"]
[WhiteClock "0:01:01"]
[BlackClock "0:02:01"]

1. g3 {[%clk 0:02:55]}  d5 {[%clk 0:02:59]} 2. Bg2 {[%clk 0:02:54]}  Nf6 {[%clk 0:03:00]} 3. d3 {[%clk 0:02:51]}  c6 {[%clk 0:03:01]} 4. e4 {[%clk 0:02:51]}  dxe4 {[%clk 0:03:00]} 5. dxe4 {[%clk 0:02:50]}  Qxd1+ {[%clk 0:03:01]} 6. Kxd1 {[%clk 0:02:51]}  g6 {[%clk 0:02:56]} 7. f3 {[%clk 0:02:50]}  Bg7 {[%clk 0:02:56]} 8. c3 {[%clk 0:02:50]}  O-O {[%clk 0:02:57]} 9. Be3 {[%clk 0:02:51]}  Nbd7 {[%clk 0:02:54]} 10. Nd2 {[%clk 0:02:51]}  Nb6 {[%clk 0:02:54]} 11. Ke2 {[%clk 0:02:47]}  Be6 {[%clk 0:02:53]} 12. Bh3 {[%clk 0:02:47]}  Bxh3 {[%clk 0:02:52]} 13. Nxh3 {[%clk 0:02:46]}  Rfd8 {[%clk 0:02:53]} 14. a4 {[%clk 0:02:46]}  Ne8 {[%clk 0:02:51]} 15. a5 {[%clk 0:02:45]}  Nd7 {[%clk 0:02:49]} 16. Nc4 {[%clk 0:02:45]}  Nc7 {[%clk 0:02:47]} 17. Rhd1 {[%clk 0:02:40]}  Ne6 {[%clk 0:02:47]} 18. Nf4 {[%clk 0:02:29]}  Nxf4+ {[%clk 0:02:46]} 19. Bxf4 {[%clk 0:02:29]}  e5 {[%clk 0:02:46]} 20. Bg5 {[%clk 0:02:28]}  f6 {[%clk 0:02:46]} 21. Be3 {[%clk 0:02:26]}  Bf8 {[%clk 0:02:47]} 22. b4 {[%clk 0:02:23]}  Kf7 {[%clk 0:02:45]} 23. Nd6+ {[%clk 0:02:09]}  Bxd6 {[%clk 0:02:44]} 24. Rxd6 {[%clk 0:02:10]}  Ke7 {[%clk 0:02:43]} 25. Rad1 {[%clk 0:02:10]}  a6 {[%clk 0:02:40]} 26. f4 {[%clk 0:01:57]}  exf4 {[%clk 0:02:34]} 27. gxf4 {[%clk 0:01:56]}  Nf8 {[%clk 0:02:34]} 28. Bc5 {[%clk 0:01:51]}  Rxd6 {[%clk 0:02:28]} 29. Rxd6 {[%clk 0:01:34]}  Ne6 {[%clk 0:02:27]} 30. Rxc6+ {[%clk 0:01:28]}  Nxc5 {[%clk 0:02:25]} 31. Rxc5 {[%clk 0:01:28]}  Kd6 {[%clk 0:02:18]} 32. Rd5+ {[%clk 0:01:23]}  Ke6 {[%clk 0:02:16]} 33. c4 {[%clk 0:01:19]}  Rc8 {[%clk 0:02:11]} 34. c5 {[%clk 0:01:15]}  Rg8 {[%clk 0:02:06]} 35. Rd6+ {[%clk 0:01:15]}  Ke7 {[%clk 0:02:06]} 36. Rb6 {[%clk 0:01:15]}  Rb8 {[%clk 0:02:05]} 37. c6 {[%clk 0:01:15]}  Kd6 {[%clk 0:02:00]} 38. cxb7+ {[%clk 0:01:14]}  Kc7 {[%clk 0:02:01]} 39. Kd3 {[%clk 0:01:05]}  Rxb7 {[%clk 0:01:58]} 40. Rxb7+ {[%clk 0:01:06]}  Kxb7 {[%clk 0:01:59]} 41. e5 {[%clk 0:01:04]}  fxe5 {[%clk 0:01:56]} 42. fxe5 {[%clk 0:01:05]}  g5 {[%clk 0:01:56]} 43. Ke4 {[%clk 0:01:04]}  h5 {[%clk 0:01:57]} 44. Kf5 {[%clk 0:01:04]}  g4 {[%clk 0:01:57]} 45. Kg5 {[%clk 0:01:04]}  Kc6 {[%clk 0:01:58]} 46. e6 {[%clk 0:01:01]}  Kd6 {[%clk 0:01:58]} 47. b5 {[%clk 0:01:01]}  axb5 {[%clk 0:01:57]} 48. a6 {[%clk 0:01:01]}  b4 {[%clk 0:01:58]} 49. a7 {[%clk 0:01:01]}  b3 {[%clk 0:01:59]} 50. a8=Q {[%clk 0:01:02]}  b2 {[%clk 0:01:59]} 51. Qb7 {[%clk 0:01:02]}  b1=Q {[%clk 0:02:00]} 52. Qxb1 {[%clk 0:01:01]}  Kxe6 {[%clk 0:02:01]} 1-0

[Event "December 19 Early 2023"]
[Site "https://www.chess.com"]
[Date "2023.12.19"]
[Round "7"]
[White "Koridze, Lile"]
[Black "Tabuenca Mendataurigoitia, Daniel"]
[Result "1-0"]
[Board "123"]
[TimeControl "180+1"]
[WhiteFideId "13612514"]
[BlackFideId "24563617"]
[WhiteElo "2061"]
[BlackElo "2130"]
[WhiteTeam "GEO"]
[BlackTeam "ESP"]
[WhiteClock "0:01:32"]
[BlackClock "0:00:02"]

1. d4 {[%clk 0:03:00]}  d6 {[%clk 0:02:56]} 2. c4 {[%clk 0:03:00]}  e5 {[%clk 0:02:56]} 3. Nc3 {[%clk 0:02:59]}  exd4 {[%clk 0:02:52]} 4. Qxd4 {[%clk 0:02:59]}  Nc6 {[%clk 0:02:49]} 5. Qd1 {[%clk 0:02:52]}  Nf6 {[%clk 0:02:45]} 6. Nf3 {[%clk 0:02:52]}  g6 {[%clk 0:02:37]} 7. Bg5 {[%clk 0:02:51]}  Bg7 {[%clk 0:02:36]} 8. e3 {[%clk 0:02:51]}  O-O {[%clk 0:02:36]} 9. Be2 {[%clk 0:02:51]}  h6 {[%clk 0:02:36]} 10. Bh4 {[%clk 0:02:51]}  a5 {[%clk 0:02:35]} 11. O-O {[%clk 0:02:48]}  Be6 {[%clk 0:02:32]} 12. Nd5 {[%clk 0:02:48]}  Nb4 {[%clk 0:02:25]} 13. a3 {[%clk 0:02:38]}  Nbxd5 {[%clk 0:02:14]} 14. cxd5 {[%clk 0:02:38]}  Bd7 {[%clk 0:02:10]} 15. Rc1 {[%clk 0:02:37]}  g5 {[%clk 0:02:05]} 16. Bg3 {[%clk 0:02:36]}  Re8 {[%clk 0:01:55]} 17. Qc2 {[%clk 0:02:35]}  Rc8 {[%clk 0:01:54]} 18. Qb3 {[%clk 0:02:31]}  b6 {[%clk 0:01:40]} 19. Ba6 {[%clk 0:02:30]}  Ra8 {[%clk 0:01:37]} 20. Bb5 {[%clk 0:02:30]}  Ne4 {[%clk 0:01:35]} 21. Bxd7 {[%clk 0:02:25]}  Qxd7 {[%clk 0:01:36]} 22. Qc4 {[%clk 0:02:22]}  Nc5 {[%clk 0:01:32]} 23. Nd4 {[%clk 0:02:20]}  a4 {[%clk 0:01:19]} 24. Rfe1 {[%clk 0:02:15]}  Bxd4 {[%clk 0:00:49]} 25. exd4 {[%clk 0:02:13]}  Nb3 {[%clk 0:00:48]} 26. Rcd1 {[%clk 0:02:11]}  Rxe1+ {[%clk 0:00:45]} 27. Rxe1 {[%clk 0:02:11]}  Re8 {[%clk 0:00:45]} 28. f3 {[%clk 0:02:11]}  Rxe1+ {[%clk 0:00:44]} 29. Bxe1 {[%clk 0:02:12]}  Qe7 {[%clk 0:00:43]} 30. Kf2 {[%clk 0:02:11]}  f5 {[%clk 0:00:43]} 31. Qxa4 {[%clk 0:02:05]}  Nc1 {[%clk 0:00:37]} 32. Qc4 {[%clk 0:02:03]}  Qg7 {[%clk 0:00:27]} 33. Qxc1 {[%clk 0:02:01]}  Qxd4+ {[%clk 0:00:27]} 34. Kf1 {[%clk 0:01:57]}  Qxd5 {[%clk 0:00:26]} 35. Qxc7 {[%clk 0:01:57]}  Qd3+ {[%clk 0:00:26]} 36. Kg1 {[%clk 0:01:57]}  Qd4+ {[%clk 0:00:25]} 37. Kh1 {[%clk 0:01:55]}  Qe5 {[%clk 0:00:24]} 38. Qc3 {[%clk 0:01:54]}  Qe2 {[%clk 0:00:23]} 39. Kg1 {[%clk 0:01:53]}  d5 {[%clk 0:00:22]} 40. Qc8+ {[%clk 0:01:49]}  Kg7 {[%clk 0:00:21]} 41. Bc3+ {[%clk 0:01:49]}  Kg6 {[%clk 0:00:20]} 42. Qc6+ {[%clk 0:01:47]}  Kh5 {[%clk 0:00:20]} 43. Qxd5 {[%clk 0:01:46]}  f4 {[%clk 0:00:18]} 44. Qd2 {[%clk 0:01:40]}  Qe6 {[%clk 0:00:15]} 45. g3 {[%clk 0:01:36]}  fxg3 {[%clk 0:00:12]} 46. hxg3 {[%clk 0:01:37]}  Qc4 {[%clk 0:00:08]} 47. Kg2 {[%clk 0:01:35]}  g4 {[%clk 0:00:04]} 48. fxg4+ {[%clk 0:01:36]}  Kxg4 {[%clk 0:00:03]} 49. Qd7+ {[%clk 0:01:32]}  Kh5 {[%clk 0:00:02]} 50. Qf5# {[%clk 0:01:32]} 1-0

[Event "December 19 Early 2023"]
[Site "https://www.chess.com"]
[Date "2023.12.19"]
[Round "7"]
[White "Korol, Dimitry"]
[Black "Krzywda, Andrzej"]
[Result "0-1"]
[Board "124"]
[TimeControl "180+1"]
[WhiteFideId "14108003"]
[BlackFideId "1114565"]
[WhiteElo "2262"]
[BlackElo "2130"]
[WhiteTeam "UKR"]
[BlackTeam "POL"]
[WhiteClock "0:00:00"]
[BlackClock "0:00:19"]

1. d4 {[%clk 0:03:00]}  d5 {[%clk 0:02:59]} 2. c4 {[%clk 0:03:01]}  dxc4 {[%clk 0:02:59]} 3. Nf3 {[%clk 0:03:00]}  Nf6 {[%clk 0:02:59]} 4. Nc3 {[%clk 0:03:01]}  a6 {[%clk 0:02:59]} 5. e4 {[%clk 0:03:01]}  b5 {[%clk 0:02:59]} 6. e5 {[%clk 0:03:01]}  Nd5 {[%clk 0:03:00]} 7. a4 {[%clk 0:03:02]}  e6 {[%clk 0:02:59]} 8. axb5 {[%clk 0:03:01]}  Bb4 {[%clk 0:02:59]} 9. Bd2 {[%clk 0:03:00]}  Nb6 {[%clk 0:02:51]} 10. bxa6 {[%clk 0:02:55]}  Rxa6 {[%clk 0:02:48]} 11. Rxa6 {[%clk 0:02:51]}  Bxa6 {[%clk 0:02:42]} 12. Be2 {[%clk 0:02:31]}  Nc6 {[%clk 0:02:36]} 13. Ne4 {[%clk 0:02:13]}  Qd5 {[%clk 0:02:16]} 14. Nc3 {[%clk 0:01:16]}  Qd7 {[%clk 0:02:10]} 15. Ne4 {[%clk 0:01:15]}  O-O {[%clk 0:01:52]} 16. O-O {[%clk 0:01:14]}  Rd8 {[%clk 0:01:48]} 17. Bg5 {[%clk 0:00:19]}  Rb8 {[%clk 0:01:46]} 18. Qc1 {[%clk 0:00:16]}  Ne7 {[%clk 0:01:27]} 19. Rd1 {[%clk 0:00:13]}  Nf5 {[%clk 0:01:21]} 20. h4 {[%clk 0:00:11]}  h6 {[%clk 0:01:19]} 21. Bxh6 {[%clk 0:00:10]}  Nxh6 {[%clk 0:01:13]} 22. Qg5 {[%clk 0:00:08]}  Nd5 {[%clk 0:00:53]} 23. Nf6+ {[%clk 0:00:06]}  Nxf6 {[%clk 0:00:52]} 24. exf6 {[%clk 0:00:07]}  Bf8 {[%clk 0:00:35]} 25. Ne5 {[%clk 0:00:07]}  Qd8 {[%clk 0:00:28]} 26. fxg7 {[%clk 0:00:06]}  Bxg7 {[%clk 0:00:27]} 27. Qg3 {[%clk 0:00:04]}  Nf5 {[%clk 0:00:23]} 28. Qf3 {[%clk 0:00:02]}  Bb7 {[%clk 0:00:19]} 29. Qf4 {[%clk 0:00:00]}  Qxh4 {[%clk 0:00:19]} 0-1

[Event "December 19 Early 2023"]
[Site "https://www.chess.com"]
[Date "2023.12.19"]
[Round "7"]
[White "Reprintsev, Alexander"]
[Black "Guimaraes, Wagner Peixoto"]
[Result "1-0"]
[Board "125"]
[TimeControl "180+1"]
[WhiteFideId "14100541"]
[BlackFideId "2100940"]
[WhiteElo "2229"]
[BlackElo "2140"]
[WhiteTeam "UKR"]
[BlackTeam "BRA"]
[WhiteClock "0:01:50"]
[BlackClock "0:00:20"]

1. e4 {[%clk 0:03:00]}  c5 {[%clk 0:02:55]} 2. b3 {[%clk 0:03:00]}  Nf6 {[%clk 0:02:54]} 3. e5 {[%clk 0:03:00]}  Nd5 {[%clk 0:02:54]} 4. Nc3 {[%clk 0:03:00]}  Nc7 {[%clk 0:02:52]} 5. d4 {[%clk 0:03:00]}  cxd4 {[%clk 0:02:52]} 6. Qxd4 {[%clk 0:03:00]}  Nc6 {[%clk 0:02:52]} 7. Qe3 {[%clk 0:03:00]}  g6 {[%clk 0:02:51]} 8. Bb2 {[%clk 0:02:55]}  Bg7 {[%clk 0:02:51]} 9. Nf3 {[%clk 0:02:49]}  d5 {[%clk 0:02:28]} 10. exd6 {[%clk 0:02:48]}  Qxd6 {[%clk 0:02:28]} 11. Nb5 {[%clk 0:02:36]}  Qb4+ {[%clk 0:02:06]} 12. c3 {[%clk 0:02:30]}  Qxb5 {[%clk 0:02:02]} 13. Bxb5 {[%clk 0:02:29]}  Nxb5 {[%clk 0:02:03]} 14. O-O-O {[%clk 0:02:23]}  h5 {[%clk 0:01:47]} 15. c4 {[%clk 0:02:18]}  Bh6 {[%clk 0:01:28]} 16. Ng5 {[%clk 0:01:54]}  f6 {[%clk 0:00:26]} 17. cxb5 {[%clk 0:01:50]}  Bxg5 {[%clk 0:00:20]} 18. f4 {[%clk 0:01:50]} 1-0